fUST/lending_fUST_20250219
["ID","MTS","AMOUNT","RATE_DAILY","PERIOD"]
[353631217,1739970640480,-1007.8268122,0.00014247,2]
[353631218,1739970640489,-500.0,0.00014273,2]
[353631219,1739970640499,-500.0,0.00014273,2]
[353631220,1739970640508,-500.0,0.00014273,2]
[353631221,1739970640519,-520.55724376,0.00014273,2]
[353631222,1739970640532,-500.0,0.00014273,2]
[353631223,1739970640542,-615.22,0.00014273,2]
[353631224,1739970640551,-538.87,0.00014273,2]
[353631225,1739970640561,-500.0,0.00014273,2]
[353631226,1739970640570,-553.43,0.00014273,2]
[353631227,1739970640579,-500.0,0.00014273,2]
[353631228,1739970640589,-2929.31,0.00014273,2]
[353631229,1739970640599,-618.83,0.00014273,2]
[353631230,1739970640608,-547.63,0.00014273,2]
[353631231,1739970640618,-500.0,0.00014273,2]
[353631232,1739970640627,-9608.93,0.00014273,2]
[353631233,1739970640637,-2034.66,0.00014273,2]
[353631234,1739970640646,-802.62,0.00014273,2]
[353631235,1739970640655,-512.41075963,0.00014273,2]
[353631236,1739970640664,-500.0,0.00014273,2]
[353631237,1739970640766,-2681.44,0.00014273,2]
[353631238,1739970640776,-629.0,0.00014273,2]
[353631239,1739970640785,-500.0,0.00014273,2]
[353631240,1739970640795,-500.0,0.00014273,2]
[353631241,1739970640804,-575.4,0.00014273,2]
[353631242,1739970640813,-1250.42,0.00014273,2]
[353631243,1739970640823,-151.0,0.000143,2]
[353631244,1739970640832,-151.0,0.000143,2]
[353631245,1739970640842,-151.0,0.000143,2]
[353631246,1739970640852,-179.65864857,0.00014336,2]
[353631247,1739970640861,-325.96380374,0.00014338,2]
[353631248,1739970640870,-500.0,0.00014355,2]
[353631249,1739970640879,-500.0,0.00014355,2]
[353631250,1739970640888,-500.0,0.00014356,2]
[353631251,1739970640897,-434.88,0.00014356,2]
[353631252,1739970640906,-500.0,0.00014356,2]
[353631253,1739970640916,-500.0,0.00014356,2]
[353631254,1739970640925,-615.22,0.00014356,2]
[353631255,1739970640934,-538.87,0.00014356,2]
[353631256,1739970640952,-402.5828796,0.00014356,2]
[353631257,1739970640961,-391.71,0.00014356,2]
[353631258,1739970640970,-2929.31,0.00014356,2]
[353631259,1739970640980,-618.83,0.00014356,2]
[353631260,1739970640989,-547.63,0.00014356,2]
[353631261,1739970640999,-500.0,0.00014356,2]
[353631262,1739970641008,-9608.93,0.00014356,2]
[353631263,1739970641017,-2034.66,0.00014356,2]
[353631264,1739970641027,-802.62,0.00014356,2]
[353631265,1739970641036,-500.0,0.00014356,2]
[353631266,1739970641047,-2681.44,0.00014356,2]
[353631267,1739970641056,-629.0,0.00014356,2]
[353631268,1739970641066,-500.0,0.00014356,2]
[353631269,1739970641075,-500.0,0.00014356,2]
[353631270,1739970641085,-575.4,0.00014356,2]
[353631271,1739970641094,-1250.42,0.00014356,2]
[353631272,1739970641104,-408.34783947,0.00014438,2]
[353631273,1739970641113,-500.0,0.00014438,2]
[353631274,1739970641123,-500.0,0.00014438,2]
[353631275,1739970641132,-615.22,0.00014438,2]
[353631276,1739970641141,-538.87,0.00014438,2]
[353631277,1739970641150,-2929.31,0.00014438,2]
[353631278,1739970641159,-618.83,0.00014438,2]
[353631279,1739970641168,-547.63,0.00014438,2]
[353631280,1739970641177,-500.0,0.00014438,2]
[353631281,1739970641187,-9608.93,0.00014438,2]
[353631282,1739970641196,-2034.66,0.00014438,2]
[353631283,1739970641205,-802.62,0.00014438,2]
[353631284,1739970641215,-500.0,0.00014438,2]
[353631285,1739970641224,-2681.44,0.00014438,2]
[353631286,1739970641233,-629.0,0.00014438,2]
[353631287,1739970641243,-500.0,0.00014438,2]
[353631288,1739970641252,-283.20248043,0.00014438,2]
[353631289,1739970641262,-575.4,0.00014438,2]
[353631290,1739970641271,-1250.42,0.00014438,2]
[353631291,1739970641280,-500.0,0.00014492,2]
[353631292,1739970641289,-151.0,0.000145,2]
[353631293,1739970641299,-151.0,0.000145,2]
[353631294,1739970641308,-500.0,0.0001452,2]
[353631295,1739970641317,-412.93572517,0.0001452,2]
[353631296,1739970641327,-615.22,0.0001452,2]
[353631297,1739970641336,-538.87,0.0001452,2]
[353631298,1739970641345,-2929.31,0.0001452,2]
[353631299,1739970641355,-618.83,0.0001452,2]
[353631300,1739970641364,-547.63,0.0001452,2]
[353631301,1739970641373,-500.0,0.0001452,2]
[353631302,1739970641383,-9608.93,0.0001452,2]
[353631303,1739970641392,-2034.66,0.0001452,2]
[353631304,1739970641401,-802.62,0.0001452,2]
[353631305,1739970641411,-500.0,0.0001452,2]
[353631306,1739970641420,-2681.44,0.0001452,2]
[353631307,1739970641429,-629.0,0.0001452,2]
[353631308,1739970641439,-500.0,0.0001452,2]
[353631309,1739970641448,-575.4,0.0001452,2]
[353631310,1739970641457,-1250.42,0.0001452,2]
[353631311,1739970641466,-245.0,0.00014527,2]
[353631312,1739970641476,-425.172,0.00014592,2]
[353631313,1739970641486,-500.0,0.00014601,2]
[353631314,1739970641495,-416.07537007,0.00014602,2]
[353631315,1739970641504,-615.22,0.00014602,2]
[353631316,1739970641513,-538.87,0.00014602,2]
[353631317,1739970641523,-2929.31,0.00014602,2]
[353631318,1739970641534,-618.83,0.00014602,2]
[353631319,1739970641543,-547.63,0.00014602,2]
[353631320,1739970641552,-500.0,0.00014602,2]
[353631321,1739970641562,-9608.93,0.00014602,2]
[353631322,1739970641572,-2034.66,0.00014602,2]
[353631323,1739970641581,-802.62,0.00014602,2]
[353631324,1739970641590,-500.0,0.00014602,2]
[353631325,1739970641600,-2681.44,0.00014602,2]
[353631326,1739970641609,-629.0,0.00014602,2]
[353631327,1739970641618,-500.0,0.00014602,2]
[353631328,1739970641628,-575.4,0.00014602,2]
[353631329,1739970641637,-1250.42,0.00014602,2]
[353631330,1739970641646,-615.22,0.00014684,2]
[353631331,1739970641655,-538.87,0.00014684,2]
[353631332,1739970641665,-2929.31,0.00014684,2]
[353631333,1739970641675,-618.83,0.00014684,2]
[353631334,1739970641684,-547.63,0.00014684,2]
[353631335,1739970641693,-500.0,0.00014684,2]
[353631336,1739970641702,-9608.93,0.00014684,2]
[353631337,1739970641711,-2034.66,0.00014684,2]
[353631338,1739970641720,-802.62,0.00014684,2]
[353631339,1739970641729,-500.0,0.00014684,2]
[353631340,1739970641738,-2681.44,0.00014684,2]
[353631341,1739970641747,-629.0,0.00014684,2]
[353631342,1739970641757,-500.0,0.00014684,2]
[353631343,1739970641766,-575.4,0.00014684,2]
[353631344,1739970641776,-1250.42,0.00014684,2]
[353631345,1739970641786,-151.0,0.000147,2]
[353631346,1739970641795,-151.0,0.000147,2]
[353631347,1739970641805,-151.0,0.000147,2]
[353631348,1739970641814,-615.22,0.00014767,2]
[353631349,1739970641823,-538.87,0.00014767,2]
[353631350,1739970641832,-2929.31,0.00014767,2]
[353631351,1739970641841,-618.83,0.00014767,2]
[353631352,1739970641851,-547.63,0.00014767,2]
[353631353,1739970641863,-500.0,0.00014767,2]
[353631354,1739970641880,-9608.93,0.00014767,2]
[353631355,1739970641890,-2034.66,0.00014767,2]
[353631356,1739970641900,-802.62,0.00014767,2]
[353631357,1739970641909,-572.227081,0.00014767,2]
[353631358,1739970641918,-2681.44,0.00014767,2]
[353631359,1739970641927,-629.0,0.00014767,2]
[353631360,1739970641937,-500.0,0.00014767,2]
[353631361,1739970641947,-575.4,0.00014767,2]
[353631362,1739970641956,-1250.42,0.00014767,2]
[353631363,1739970641965,-1000.0,0.00014784,2]
[353631364,1739970641975,-1151.80954688,0.000148,2]
[353631365,1739970641985,-153.36348279,0.00014831,2]
[353631366,1739970641997,-153.36348279,0.00014831,2]
[353631367,1739970642005,-153.36348279,0.00014831,2]
[353631368,1739970642016,-153.36348279,0.00014831,2]
[353631369,1739970642026,-153.36348279,0.00014831,2]
[353631370,1739970642035,-153.36348279,0.00014831,2]
[353631371,1739970642045,-153.36,0.00014831,2]
[353631372,1739970642055,-152.53437279,0.00014831,2]
[353631373,1739970642064,-152.53437279,0.00014831,2]
[353631374,1739970642074,-152.53437279,0.00014831,2]
[353631375,1739970642083,-152.53437279,0.00014831,2]
[353631376,1739970642093,-152.53437279,0.00014831,2]
[353631377,1739970642102,-152.53437279,0.00014831,2]
[353631378,1739970642112,-152.53437279,0.00014831,2]
[353631379,1739970642121,-152.53437279,0.00014831,2]
[353631380,1739970642130,-152.53437279,0.00014831,2]
[353631381,1739970642140,-152.53437279,0.00014831,2]
[353631382,1739970642149,-152.53437279,0.00014831,2]
[353631383,1739970642159,-152.53437279,0.00014831,2]
[353631384,1739970642169,-152.53437279,0.00014831,2]
[353631385,1739970642178,-152.53437279,0.00014831,2]
[353631386,1739970642187,-152.53437279,0.00014831,2]
[353631387,1739970642197,-152.53437279,0.00014831,2]
[353631388,1739970642207,-152.53,0.00014831,2]
[353631389,1739970642217,-500.0,0.00014848,2]
[353631390,1739970642227,-615.22,0.00014849,2]
[353631391,1739970642236,-538.87,0.00014849,2]
[353631392,1739970642246,-2929.31,0.00014849,2]
[353631393,1739970642255,-618.83,0.00014849,2]
[353631395,1739970642264,-547.63,0.00014849,2]
[353631396,1739970642274,-500.0,0.00014849,2]
[353631397,1739970642283,-9608.93,0.00014849,2]
[353631398,1739970642293,-2034.66,0.00014849,2]
[353631399,1739970642302,-802.62,0.00014849,2]
[353631400,1739970642311,-2681.44,0.00014849,2]
[353631401,1739970642320,-629.0,0.00014849,2]
[353631402,1739970642329,-500.0,0.00014849,2]
[353631403,1739970642339,-575.4,0.00014849,2]
[353631404,1739970642350,-1250.42,0.00014849,2]
[353631405,1739970642360,-500.0,0.00014873,2]
[353631406,1739970642369,-500.0,0.00014873,2]
[353631407,1739970642379,-500.4381034,0.00014873,2]
[353631408,1739970642388,-635.95312818,0.00014873,2]
[353631409,1739970642397,-500.0,0.00014873,2]
[353631410,1739970642407,-500.0,0.00014873,2]
[353631411,1739970642415,-500.0,0.00014873,2]
[353631412,1739970642424,-500.0,0.00014873,2]
[353631413,1739970642434,-500.0,0.00014873,2]
[353631415,1739970642443,-500.0,0.00014873,2]
[353631416,1739970642452,-500.0,0.00014899,2]
[353631417,1739970642461,-369.78340406,0.00014899,2]
[353631418,1739970642470,-151.0,0.000149,2]
[353631419,1739970642479,-279.485742,0.000149,2]
[353631420,1739970642488,-279.485742,0.000149,2]
[353631421,1739970642497,-2686.924521,0.000149,2]
[353631422,1739970642506,-2686.924521,0.000149,2]
[353631423,1739970642517,-591.546905,0.000149,2]
[353631424,1739970642529,-591.546905,0.000149,2]
[353631425,1739970642538,-632.253702,0.000149,2]
[353631426,1739970642548,-632.253702,0.000149,2]
[353631427,1739970642557,-151.0,0.000149,2]
[353631428,1739970642568,-417476.712083,0.000149,2]
[353631429,1739970642581,-615.22,0.00014931,2]
[353631430,1739970642595,-538.87,0.00014931,2]
[353631432,1739970642606,-2929.31,0.00014931,2]
[353631434,1739970642616,-618.83,0.00014931,2]
[353631436,1739970642625,-547.63,0.00014931,2]
[353631438,1739970642635,-500.0,0.00014931,2]
[353631440,1739970642644,-9608.93,0.00014931,2]
[353631442,1739970642654,-2034.66,0.00014931,2]
[353631444,1739970642663,-802.62,0.00014931,2]
[353631446,1739970642672,-2681.44,0.00014931,2]
[353631448,1739970642681,-629.0,0.00014931,2]
[353631450,1739970642692,-403.33663562,0.00014931,2]
[353631452,1739970642701,-575.4,0.00014931,2]
[353631454,1739970642710,-1250.42,0.00014931,2]
[353631455,1739970642720,-151.0,0.00015,2]
[353631456,1739970642729,-151.0,0.00015,2]
[353631458,1739970642739,-151.0,0.00015,2]
[353631460,1739970642748,-615.22,0.00015013,2]
[353631462,1739970642758,-538.87,0.00015013,2]
[353631464,1739970642767,-2929.31,0.00015013,2]
[353631466,1739970642776,-618.83,0.00015013,2]
[353631468,1739970642786,-547.63,0.00015013,2]
[353631470,1739970642797,-500.0,0.00015013,2]
[353631472,1739970642806,-9608.93,0.00015013,2]
[353631474,1739970642815,-2034.66,0.00015013,2]
[353631476,1739970642824,-802.62,0.00015013,2]
[353631478,1739970642835,-2681.44,0.00015013,2]
[353631480,1739970642845,-629.0,0.00015013,2]
[353631482,1739970642854,-575.4,0.00015013,2]
[353631484,1739970642863,-1250.42,0.00015013,2]
[353631486,1739970642873,-557.1188801,0.00015014,2]
[353631488,1739970642882,-557.1188801,0.00015014,2]
[353631490,1739970642892,-557.1188801,0.00015014,2]
[353631492,1739970642901,-355.163177,0.00015014,2]
[353631503,1739970642990,-154.7376905,0.00015014,2]
[353631505,1739970643000,-154.7376905,0.00015014,2]
[353631507,1739970643009,-154.7376905,0.00015014,2]
[353631509,1739970643019,-154.7376905,0.00015014,2]
[353631511,1739970643028,-154.7376905,0.00015014,2]
[353631513,1739970643037,-154.7376905,0.00015014,2]
[353631516,1739970643047,-154.7376905,0.00015014,2]
[353631518,1739970643056,-154.7376905,0.00015014,2]
[353631520,1739970643065,-154.7376905,0.00015014,2]
[353631522,1739970643074,-154.7376905,0.00015014,2]
[353631524,1739970643083,-253.1429025,0.00015014,2]
[353631526,1739970643092,-355.163177,0.00015014,2]
[353631528,1739970643102,-355.163177,0.00015014,2]
[353631530,1739970643111,-355.163177,0.00015014,2]
[353631532,1739970643120,-355.163177,0.00015014,2]
[353631534,1739970643130,-355.163177,0.00015014,2]
[353631536,1739970643139,-355.163177,0.00015014,2]
[353631538,1739970643148,-355.163177,0.00015014,2]
[353631541,1739970643158,-355.163177,0.00015014,2]
[353631543,1739970643167,-7438.69753278,0.00015017,2]
[353631545,1739970643177,-168.68376444,0.00015027,2]
[353631547,1739970643186,-615.22,0.00015095,2]
[353631549,1739970643195,-538.87,0.00015095,2]
[353631551,1739970643204,-2929.31,0.00015095,2]
[353631553,1739970643213,-618.83,0.00015095,2]
[353631555,1739970643223,-547.63,0.00015095,2]
[353631557,1739970643235,-500.0,0.00015095,2]
[353631559,1739970643245,-9608.93,0.00015095,2]
[353631561,1739970643254,-2034.66,0.00015095,2]
[353631563,1739970643264,-802.62,0.00015095,2]
[353631565,1739970643273,-2681.44,0.00015095,2]
[353631567,1739970643282,-629.0,0.00015095,2]
[353631569,1739970643292,-575.4,0.00015095,2]
[353631571,1739970643302,-1250.42,0.00015095,2]
[353631573,1739970643312,-557.1188801,0.00015096,2]
[353631575,1739970643321,-557.1188801,0.00015096,2]
[353631577,1739970643331,-557.1188801,0.00015096,2]
[353631579,1739970643340,-557.1188801,0.00015096,2]
[353631581,1739970643349,-557.1188801,0.00015096,2]
[353631583,1739970643358,-557.1188801,0.00015096,2]
[353631585,1739970643368,-557.1188801,0.00015096,2]
[353631587,1739970643378,-557.1188801,0.00015096,2]
[353631589,1739970643387,-557.1188801,0.00015096,2]
[353631591,1739970643396,-557.1188801,0.00015096,2]
[353631593,1739970643406,-557.1188801,0.00015096,2]
[353631595,1739970643415,-557.1188801,0.00015096,2]
[353631597,1739970643424,-557.1188801,0.00015096,2]
[353631599,1739970643433,-557.1188801,0.00015096,2]
[353631601,1739970643443,-557.1188801,0.00015096,2]
[353631603,1739970643452,-557.1188801,0.00015096,2]
[353631605,1739970643461,-557.1188801,0.00015096,2]
[353631608,1739970643471,-557.1188801,0.00015096,2]
[353631609,1739970643481,-557.1188801,0.00015096,2]
[353631611,1739970643490,-557.1188801,0.00015096,2]
[353631613,1739970643499,-557.1188801,0.00015096,2]
[353631615,1739970643508,-557.1188801,0.00015096,2]
[353631617,1739970643518,-557.1188801,0.00015096,2]
[353631619,1739970643531,-306.0,0.00015096,2]
[353631621,1739970643540,-325.96380374,0.00015129,2]
[353631624,1739970643551,-615.22,0.00015178,2]
[353631626,1739970643560,-538.87,0.00015178,2]
[353631628,1739970643570,-2929.31,0.00015178,2]
[353631629,1739970643580,-618.83,0.00015178,2]
[353631631,1739970643589,-547.63,0.00015178,2]
[353631633,1739970643599,-500.0,0.00015178,2]
[353631635,1739970643608,-9608.93,0.00015178,2]
[353631638,1739970643619,-2034.66,0.00015178,2]
[353631640,1739970643628,-802.62,0.00015178,2]
[353631641,1739970643637,-2681.44,0.00015178,2]
[353631644,1739970643647,-629.0,0.00015178,2]
[353631646,1739970643656,-575.4,0.00015178,2]
[353631648,1739970643665,-1250.42,0.00015178,2]
[353631650,1739970643674,-153.0,0.00015178,2]
[353631652,1739970643683,-153.0,0.00015178,2]
[353631654,1739970643693,-153.0,0.00015178,2]
[353631655,1739970643702,-153.0,0.00015178,2]
[353631657,1739970643712,-153.0,0.00015178,2]
[353631659,1739970643721,-153.0,0.00015178,2]
[353631662,1739970643731,-153.0,0.00015178,2]
[353631664,1739970643741,-153.0,0.00015178,2]
[353631665,1739970643750,-153.0,0.00015178,2]
[353631667,1739970643759,-153.0,0.00015178,2]
[353631670,1739970643769,-151.0,0.000152,2]
[353631672,1739970643778,-151.0,0.000152,2]
[353631674,1739970643788,-615.22,0.0001526,2]
[353631675,1739970643799,-538.87,0.0001526,2]
[353631677,1739970643808,-2929.31,0.0001526,2]
[353631679,1739970643817,-618.83,0.0001526,2]
[353631681,1739970643826,-547.63,0.0001526,2]
[353631683,1739970643836,-500.0,0.0001526,2]
[353631686,1739970643846,-9608.93,0.0001526,2]
[353631688,1739970643856,-2034.66,0.0001526,2]
[353631690,1739970643866,-802.62,0.0001526,2]
[353631692,1739970643875,-2681.44,0.0001526,2]
[353631693,1739970643886,-629.0,0.0001526,2]
[353631696,1739970643896,-575.4,0.0001526,2]
[353631698,1739970643905,-1250.42,0.0001526,2]
[353631699,1739970643916,-557.1188801,0.0001526,2]
[353631702,1739970643925,-557.1188801,0.0001526,2]
[353631704,1739970643934,-587.0,0.00015304,2]
[353631706,1739970643943,-615.22,0.00015342,2]
[353631708,1739970643953,-538.87,0.00015342,2]
[353631710,1739970643963,-2929.31,0.00015342,2]
[353631712,1739970643973,-618.83,0.00015342,2]
[353631714,1739970643982,-547.63,0.00015342,2]
[353631716,1739970643992,-500.0,0.00015342,2]
[353631718,1739970644001,-9608.93,0.00015342,2]
[353631720,1739970644010,-2034.66,0.00015342,2]
[353631721,1739970644019,-802.62,0.00015342,2]
[353631724,1739970644029,-2681.44,0.00015342,2]
[353631725,1739970644038,-629.0,0.00015342,2]
[353631728,1739970644049,-575.4,0.00015342,2]
[353631730,1739970644058,-1250.42,0.00015342,2]
[353631732,1739970644068,-151.0,0.000154,2]
[353631733,1739970644077,-151.0,0.000154,2]
[353631736,1739970644087,-1000.0,0.00015421,2]
[353631738,1739970644096,-1000.0,0.00015421,2]
[353631739,1739970644105,-500.0,0.00015421,2]
[353631742,1739970644115,-1000.0,0.00015421,2]
[353631744,1739970644124,-1000.0,0.00015421,2]
[353631746,1739970644133,-1000.0,0.00015421,2]
[353631747,1739970644142,-1000.0,0.00015421,2]
[353631750,1739970644152,-615.22,0.00015424,2]
[353631752,1739970644162,-538.87,0.00015424,2]
[353631754,1739970644171,-2929.31,0.00015424,2]
[353631756,1739970644180,-618.83,0.00015424,2]
[353631758,1739970644190,-547.63,0.00015424,2]
[353631760,1739970644199,-234.10902174,0.00015424,2]
[353631762,1739970644208,-9608.93,0.00015424,2]
[353631764,1739970644217,-2034.66,0.00015424,2]
[353631766,1739970644226,-802.62,0.00015424,2]
[353631768,1739970644236,-2681.44,0.00015424,2]
[353631770,1739970644245,-629.0,0.00015424,2]
[353631772,1739970644254,-575.4,0.00015424,2]
[353631774,1739970644264,-1250.42,0.00015424,2]
[353631776,1739970644273,-151.0,0.000155,2]
[353631778,1739970644282,-160.0,0.00015504,3]
[353631780,1739970644293,-615.22,0.00015506,2]
[353631782,1739970644302,-538.87,0.00015506,2]
[353631784,1739970644312,-2929.31,0.00015506,2]
[353631786,1739970644321,-618.83,0.00015506,2]
[353631788,1739970644331,-547.63,0.00015506,2]
[353631790,1739970644341,-9608.93,0.00015506,2]
[353631792,1739970644350,-2034.66,0.00015506,2]
[353631793,1739970644360,-802.62,0.00015506,2]
[353631795,1739970644369,-2681.44,0.00015506,2]
[353631797,1739970644379,-629.0,0.00015506,2]
[353631800,1739970644388,-575.4,0.00015506,2]
[353631801,1739970644398,-1250.42,0.00015506,2]
[353631804,1739970644407,-600.0,0.00015534,2]
[353631806,1739970644416,-176.052147,0.00015589,2]
[353631808,1739970644426,-2686.924521,0.00015589,2]
[353631809,1739970644435,-2686.924521,0.00015589,2]
[353631811,1739970644444,-591.546905,0.00015589,2]
[353631813,1739970644453,-591.546905,0.00015589,2]
[353631816,1739970644463,-632.253702,0.00015589,2]
[353631817,1739970644472,-632.253702,0.00015589,2]
[353631820,1739970644481,-615.22,0.00015589,2]
[353631821,1739970644490,-539.06926382,0.00015589,2]
[353631823,1739970644500,-2929.43171535,0.00015589,2]
[353631825,1739970644509,-618.8397581,0.00015589,2]
[353631827,1739970644518,-547.86,0.00015589,2]
[353631829,1739970644532,-9609.1431,0.00015589,2]
[353631831,1739970644541,-2034.7055477,0.00015589,2]
[353631834,1739970644552,-802.81639847,0.00015589,2]
[353631836,1739970644562,-2681.55740344,0.00015589,2]
[353631838,1739970644571,-629.04381126,0.00015589,2]
[353631839,1739970644580,-575.53148451,0.00015589,2]
[353631841,1739970644589,-1250.52035416,0.00015589,2]
[353631844,1739970644600,-151.0,0.000157,2]
[353631846,1739970644610,-195.857811,0.00015775,2]
[353631848,1739970644619,-1000.0,0.00015786,2]
[353631849,1739970644629,-151.0,0.000158,2]
[353631851,1739970644639,-151.0,0.000158,2]
[353631853,1739970644649,-325.96380374,0.00015919,2]
[353631855,1739970644658,-151.0,0.00016,2]
[353631858,1739970644667,-150.0,0.00016,2]
[353631860,1739970644677,-151.0,0.00016,2]
[353631861,1739970644686,-151.0,0.000161,2]
[353631863,1739970644696,-499.0,0.00016164,2]
[353631865,1739970644705,-605.65031961,0.00016173,2]
[353631868,1739970644715,-500.0,0.00016173,2]
[353631869,1739970644724,-500.0,0.00016173,2]
[353631872,1739970644733,-353.60210934,0.00016173,2]
[353631873,1739970644744,-500.0,0.00016173,2]
[353631876,1739970644754,-431.13927372,0.00016173,2]
[353631877,1739970644764,-500.0,0.00016173,2]
[353631880,1739970644773,-500.0,0.00016173,2]
[353631882,1739970644783,-163.32279024,0.00016173,2]
[353631883,1739970644792,-500.0,0.00016173,2]
[353631886,1739970644802,-261.70172979,0.00016173,2]
[353631887,1739970644812,-500.0,0.00016173,2]
[353631889,1739970644821,-500.0,0.00016173,2]
[353631892,1739970644830,-500.0,0.00016173,2]
[353631893,1739970644839,-500.0,0.00016173,2]
[353631895,1739970644849,-279.485742,0.0001619,2]
[353631897,1739970644861,-279.485742,0.0001619,2]
[353631900,1739970644871,-557.1188801,0.00016192,2]
[353631901,1739970644880,-557.1188801,0.00016192,2]
[353631903,1739970644889,-557.1188801,0.00016192,2]
[353631905,1739970644899,-557.1188801,0.00016192,2]
[353631908,1739970644909,-557.1188801,0.00016192,2]
[353631910,1739970644919,-557.1188801,0.00016192,2]
[353631912,1739970644928,-557.1188801,0.00016192,2]
[353631914,1739970644937,-310.9439493,0.00016192,2]
[353631916,1739970644947,-557.1188801,0.00016192,2]
[353631917,1739970644956,-557.1188801,0.00016192,2]
[353631927,1739970645042,-557.1188801,0.00016192,2]
[353631929,1739970645053,-557.1188801,0.00016192,2]
[353631932,1739970645063,-557.1188801,0.00016192,2]
[353631934,1739970645073,-557.1188801,0.00016192,2]
[353631936,1739970645082,-557.1188801,0.00016192,2]
[353631938,1739970645092,-557.1188801,0.00016192,2]
[353631940,1739970645102,-557.1188801,0.00016192,2]
[353631942,1739970645111,-557.1188801,0.00016192,2]
[353631944,1739970645121,-557.1188801,0.00016192,2]
[353631946,1739970645130,-298.9953498,0.00016192,2]
[353631948,1739970645140,-279.485742,0.000162,2]
[353631950,1739970645149,-279.485742,0.000162,2]
[353631952,1739970645159,-151.0,0.000162,2]
[353631954,1739970645169,-2686.924521,0.000162,2]
[353631956,1739970645179,-2686.924521,0.000162,2]
[353631958,1739970645188,-591.546905,0.000162,2]
[353631960,1739970645198,-591.546905,0.000162,2]
[353631962,1739970645208,-632.253702,0.000162,2]
[353631964,1739970645218,-632.253702,0.000162,2]
[353631966,1739970645228,-59843.7751385,0.000162,2]
[353631968,1739970645238,-59843.77513849,0.000162,2]
[353631970,1739970645248,-59843.77513849,0.000162,2]
[353631973,1739970645257,-456.0,0.00016374,2]
[353631975,1739970645268,-456.0,0.00016374,2]
[353631977,1739970645277,-456.0,0.00016374,2]
[353631979,1739970645287,-456.0,0.00016374,2]
[353631981,1739970645299,-456.0,0.00016374,2]
[353631985,1739970645309,-456.0,0.00016374,2]
[353631987,1739970645319,-456.0,0.00016374,2]
[353631989,1739970645329,-456.0,0.00016374,2]
[353631992,1739970645339,-456.0,0.00016374,2]
[353631994,1739970645349,-456.0,0.00016374,2]
[353631996,1739970645359,-456.0,0.00016374,2]
[353631999,1739970645369,-456.0,0.00016374,2]
[353632001,1739970645379,-456.0,0.00016374,2]
[353632003,1739970645394,-456.0,0.00016374,2]
[353632005,1739970645404,-587.0,0.00016374,2]
[353632007,1739970645413,-587.0,0.00016374,2]
[353632009,1739970645423,-587.0,0.00016374,2]
[353632011,1739970645432,-587.0,0.00016374,2]
[353632013,1739970645442,-587.0,0.00016374,2]
[353632015,1739970645451,-587.0,0.00016374,2]
[353632017,1739970645462,-587.0,0.00016374,2]
[353632019,1739970645472,-587.0,0.00016374,2]
[353632021,1739970645482,-587.0,0.00016374,2]
[353632023,1739970645491,-587.0,0.00016374,2]
[353632025,1739970645500,-587.0,0.00016374,2]
[353632027,1739970645509,-587.0,0.00016374,2]
[353632029,1739970645520,-587.0,0.00016374,2]